bitfinex-derivatives/quotes_ETHF0:USTF0_20250403
["timestamp","ask_amount","ask_price","bid_price","bid_amount"]
[1743687203424,6.82876,1784.5,1784.4,40.8]
[1743687203725,6.82876,1784.5,1784.3,8.31e-06]
[1743687203726,1.12102,1784.4,1784.3,8.31e-06]
[1743687203941,3.55022,1784.4,1784.3,8.31e-06]
[1743687204235,3.55022,1784.4,1783.0,6.98671]
[1743687204236,1.12151,1783.7,1783.4,1.12162]
[1743687204434,3.2078,1783.5,1783.4,1.4848]
[1743687204636,3.2078,1783.5,1783.4,2.60645]
[1743687204936,3.2078,1783.5,1783.4,1.4848]
[1743687205132,3.2078,1783.5,1783.4,2.60645]
[1743687206027,0.00836871,1783.6,1783.5,1.12159]
[1743687206234,3.2078,1784.1,1783.5,1.4817]
[1743687206428,3.2078,1784.5,1784.0,1.12127]
[1743687206633,3.2078,1784.5,1784.1,1.4817]
[1743687206836,3.2078,1784.5,1784.4,1.12102]
[1743687207135,3.2078,1784.7,1784.6,1.1209]
[1743687207340,3.2078,1785.2,1785.1,1.12058]
[1743687207536,3.2078,1785.2,1784.7,2.80194]
[1743687207537,3.2078,1785.5,1784.8,1.4817]
[1743687207838,0.16860797,1785.6,1784.8,1.4817]
[1743687207839,0.16860797,1785.6,1785.5,1.12033]
[1743687208043,3.2078,1786.2,1785.9,1.12005]
[1743687208242,3.2078,1786.2,1785.8,3.2078]
[1743687208442,3.2078,1786.2,1785.9,1.49010831]
[1743687209043,4.32782,1786.0,1785.9,0.00840831]
[1743687209244,3.2078,1786.0,1785.3,1.4779]
[1743687209441,3.2078,1786.1,1785.3,1.4779]
[1743687209743,3.2078,1785.4,1785.3,1.4779]
[1743687209947,1.12032,1785.6,1785.3,1.4779]
[1743687210152,3.2078,1785.7,1784.9,4.2384]
[1743687210347,0.00840831,1785.6,1785.3,1.12883831]
[1743687210543,0.00840831,1785.6,1785.4,1.4779]
[1743687210741,3.2078,1785.5,1785.4,1.4779]
[1743687211049,0.00840831,1785.6,1785.4,1.4779]
[1743687211240,0.00840831,1785.6,1785.5,1.12033]
[1743687211655,3.2078,1786.2,1785.5,3.9779]
[1743687211859,3.2078,1786.2,1785.9,1.12005]
[1743687212056,3.2078,1786.2,1785.4,3.2078]
[1743687212259,3.2078,1785.8,1785.3,0.00840831]
[1743687212464,3.2078,1785.8,1785.5,1.12031]
[1743687212656,3.2078,1786.1,1785.3,4.64750831]
[1743687212958,3.2078,1786.1,1785.6,40.8]
[1743687213165,3.2078,1786.0,1785.6,40.8]
[1743687213358,3.2078,1786.0,1785.7,1.4313]
[1743687214057,3.2078,1786.0,1785.9,1.12008]
[1743687214560,4.32782,1786.0,1785.9,1.4313]
[1743687214754,1.78607,1786.0,1785.9,1.4313]
[1743687214956,11.55937,1787.6,1786.0,2.8]
[1743687214957,3.2078,1787.2,1786.0,2.8]
[1743687215157,3.2078,1786.8,1786.4,3.2078]
[1743687215362,4.6797,1787.2,1786.5,1.5187]
[1743687215561,3.2078,1787.1,1786.5,2.63838]
[1743687215762,3.2078,1787.1,1786.5,1.5187]
[1743687215967,1.11964,1786.6,1786.5,1.5187]
[1743687216264,1.1197,1786.5,1786.4,0.00840831]
[1743687216464,4.3275,1786.5,1786.4,0.00840831]
[1743687216663,1.1197,1786.5,1786.4,0.00840831]
[1743687216858,3.2078,1786.8,1786.4,0.00840831]
[1743687217064,1.1196,1786.7,1786.4,1.12815831]
[1743687217266,4.32734,1786.8,1786.5,1.11969]
[1743687217461,9.2658,1787.2,1786.7,1.11958]
[1743687217665,3.2078,1787.2,1786.8,1.5187]
[1743687217868,3.2078,1787.0,1786.4,0.00840831]
[1743687218065,3.2078,1786.8,1786.4,1.49010831]
[1743687218263,3.2078,1787.7,1786.8,2.7988]
[1743687218567,3.2078,1787.9,1787.5,1.11906]
[1743687218774,3.2078,1787.9,1787.6,1.4817]
[1743687218973,3.2078,1788.1,1787.6,1.4817]
[1743687219266,3.2078,1787.9,1787.6,1.49010831]
[1743687219470,3.2078,1788.1,1787.6,1.49010831]
[1743687219667,1.5058,1788.5,1787.6,4.69790831]
[1743687219668,3.2078,1788.4,1787.6,4.69790831]
[1743687219863,3.2078,1788.2,1787.7,3.2078]
[1743687220174,3.2078,1788.0,1787.8,1.4817]
[1743687220468,4.32656,1788.0,1787.9,40.8]
[1743687220666,3.2078,1788.0,1787.6,0.00840831]
[1743687220861,3.2078,1787.8,1787.6,0.00840831]
[1743687221064,1.11895,1787.7,1787.6,0.00840831]
[1743687221265,3.2078,1787.8,1787.6,0.00840831]
[1743687221461,3.2078,1788.0,1787.8,1.11885]
[1743687221768,1.11867,1788.2,1787.6,2.50840831]
[1743687221769,3.2078,1788.2,1787.9,1.4293]
[1743687222066,3.2078,1788.4,1787.9,4.6371]
[1743687222274,3.2078,1788.4,1787.9,1.4293]
[1743687222469,1.11861,1788.3,1788.0,1.11875]
[1743687222665,4.32644,1788.2,1788.1,40.8]
[1743687222873,3.2078,1788.2,1788.1,40.8]
[1743687223271,3.2078,1789.1,1788.1,43.3]
[1743687223472,3.2078,1789.5,1789.4,1.11789]
[1743687223772,1.11752,1790.0,1789.2,2.79502]
[1743687223975,3.2078,1789.6,1789.5,1.11783]
[1743687224171,0.156,1790.7,1789.5,1.11783]
[1743687224172,3.37640797,1791.0,1789.9,2.79392]
[1743687224363,3.20779505,1790.9,1790.3,3.2078]
[1743687224573,3.20779505,1790.9,1789.6,5.99733107]
[1743687224574,0.16860797,1791.0,1790.8,3.2078]
[1743687224771,0.16860797,1791.0,1790.7,3.2078]
[1743687224772,0.71985505,1790.9,1790.7,3.2078]
[1743687225167,0.16860797,1791.0,1790.7,3.2078]
[1743687225369,0.71985505,1790.9,1790.7,3.2078]
[1743687225669,0.71985505,1790.9,1790.4,40.80838434]
[1743687225670,1.11716,1790.6,1790.4,40.80838434]
[1743687225872,3.2078,1790.5,1790.4,0.00838434]
[1743687226072,4.7099,1790.5,1789.7,3.2078]
[1743687226277,0.71985505,1790.4,1790.0,4.32529]
[1743687226470,0.71985505,1790.4,1790.3,1.11733]
[1743687226775,1.11715,1790.6,1790.3,3.2078]
[1743687226971,3.37640797,1791.0,1790.3,3.2078]
[1743687227175,0.16860797,1791.0,1790.7,3.2078]
[1743687227476,0.00830444,1790.8,1790.7,4.32485]
[1743687227671,0.00830444,1790.8,1790.3,0.00838434]
[1743687227872,0.71985505,1790.7,1790.3,4.61898434]
[1743687228077,1.11741,1790.2,1790.0,3.2078]
[1743687228269,5.04351505,1790.6,1789.9,1.4028]
[1743687228473,2.79379,1790.0,1789.2,0.5592]
[1743687228672,3.2078,1789.9,1789.2,1.4028]
[1743687228870,3.2078,1790.2,1789.2,1.4028]
[1743687229179,3.2078,1789.8,1789.3,3.2078]
[1743687229380,0.71985505,1790.1,1789.2,1.4028]
[1743687229381,1.11779,1789.6,1789.5,0.00838434]
[1743687229578,3.2078,1789.6,1789.5,0.00838434]
[1743687229774,0.71985505,1789.6,1789.0,3.2078]
[1743687229975,0.71985505,1789.5,1789.1,1.4028]
[1743687230274,1.11793,1789.4,1789.1,1.4028]
[1743687230475,0.00838434,1789.9,1789.6,1.11772]
[1743687230675,4.32544,1789.8,1789.7,1.3943]
[1743687230872,1.1181,1789.1,1788.8,3.2078]
[1743687231174,3.2078,1789.5,1789.0,1.3943]
[1743687231379,2.7945,1789.6,1788.8,3.2078]
[1743687231380,1.1182,1788.9,1788.8,3.2078]
[1743687231567,1.1182,1788.9,1788.8,0.00838434]
[1743687231768,1.11805,1789.2,1788.5,4.6021]
[1743687231973,0.71985505,1789.2,1788.7,3.2078]
[1743687232181,0.71985505,1789.1,1788.8,1.3943]
[1743687232384,0.71985505,1789.2,1788.8,1.3943]
[1743687232579,3.2078,1789.0,1788.8,1.3943]
[1743687232769,0.71985505,1789.1,1788.9,1.1182]
[1743687232969,1.83789505,1789.2,1788.9,1.11818]
[1743687233184,3.2078,1789.4,1789.0,2.51244]
[1743687233185,0.00838434,1789.1,1789.0,2.51244]
[1743687233370,0.00838434,1789.1,1788.8,3.2078]
[1743687233575,0.71985505,1789.0,1788.7,0.00838434]
[1743687233870,1.11826,1788.8,1788.7,0.00838434]
[1743687234077,4.58747813,1788.9,1788.2,3.2078]
[1743687234381,0.00838434,1789.1,1789.0,1.11814]
[1743687234781,0.00838434,1789.1,1789.0,45.12594]
[1743687234981,0.00838434,1789.1,1789.0,47.62594]
[1743687235179,0.00838434,1789.1,1789.0,40.8]
[1743687235180,0.72823939,1789.1,1789.0,40.8]
[1743687235381,5.05411939,1789.1,1789.0,40.8]
[1743687235576,3.23881939,1789.1,1789.0,40.8]
[1743687235878,8.94661939,1789.1,1789.0,40.8]
[1743687236178,8.94661939,1789.1,1788.9,0.00838434]
[1743687236179,1.11814,1789.0,1788.9,0.00838434]
[1743687236484,1.83799505,1789.0,1788.9,0.00838434]
[1743687236777,2.21465505,1789.0,1788.9,0.00838434]
[1743687236971,0.00838434,1789.1,1789.0,1.11814]
[1743687237171,5.05e-06,1789.0,1788.9,43.32953434]
[1743687237379,3.2078,1790.0,1788.9,51.89438434]
[1743687237587,1.11767,1789.8,1789.6,1.11774]
[1743687237773,1.4948,1789.9,1789.4,1.403]
[1743687237969,4.32563,1789.5,1789.4,1.403]
[1743687238170,4.32563,1789.5,1788.9,40.80838434]
[1743687238171,3.2078,1789.5,1788.9,40.80838434]
[1743687238378,1.11814,1789.0,1788.9,40.80838434]
[1743687238769,6.82594,1789.0,1788.9,40.80838434]
[1743687238975,6.82594,1789.0,1788.4,1.11848]
[1743687238976,5.7078,1789.0,1788.4,1.11848]
[1743687239172,1.4948,1788.9,1788.8,1.11826]
[1743687239470,5.8208,1788.9,1788.8,40.8]
[1743687239675,1.11837,1788.7,1788.3,1.403]
[1743687239876,1.4615,1788.6,1788.5,1.11845]
[1743687240080,1.4615,1788.6,1788.5,40.8]
[1743687240676,3.2078,1788.9,1788.5,40.8]
[1743687240883,1.11839,1788.6,1788.5,40.8]
[1743687241583,1.11851,1788.4,1788.3,0.00838434]
[1743687241882,4.32631,1788.4,1788.3,4.34e-06]
[1743687242078,6.82631,1788.4,1788.3,4.34e-06]
[1743687242382,6.92492396,1788.4,1788.3,4.34e-06]
[1743687243084,6.92491935,1788.4,1788.3,4.34e-06]
[1743687243683,7.08091935,1788.4,1788.3,4.34e-06]
[1743687244081,6.98231,1788.4,1788.3,4.34e-06]
[1743687244378,6.82631,1788.4,1788.3,4.34e-06]
[1743687244578,4.32631,1788.4,1788.3,4.34e-06]
[1743687244775,1.11848,1788.5,1788.3,1.11858434]
[1743687244980,3.2078,1788.5,1788.3,4.34e-06]
[1743687245183,3.2078,1788.5,1788.4,40.8]
[1743687245381,4.32625,1788.5,1788.4,40.8]
[1743687245580,6.82625,1788.5,1788.4,40.8]
[1743687245986,1.11851,1788.4,1788.3,4.34e-06]
[1743687246286,1.3731193,1788.4,1788.3,4.34e-06]
[1743687246473,5.3100193,1788.4,1788.3,4.34e-06]
[1743687246876,4.1915093,1788.4,1787.2,1.4128]
[1743687247073,2.79723,1787.8,1787.4,1.11913]
[1743687247280,6.00492,1787.9,1787.4,2.53193]
[1743687247578,6.00492,1787.9,1787.4,1.4128]
[1743687247579,3.2078,1787.9,1787.4,1.4128]
[1743687247784,3.2078,1788.7,1787.8,2.79716]
[1743687247976,3.2078,1788.7,1788.3,1.11853]
[1743687248178,2.79551,1788.9,1788.1,6.01020944]
[1743687248481,5.58983,1789.3,1788.6,1.11839]
[1743687248482,0.00838434,1788.7,1788.6,1.11839]
[1743687248987,0.00838434,1788.7,1788.6,3.61839]
[1743687249781,0.00838434,1788.7,1788.6,1.11839]
[1743687250181,0.00838434,1788.7,1788.2,2.59002]
[1743687250383,0.00838434,1788.7,1788.1,0.00566944]
[1743687250384,1.11864,1788.2,1788.1,0.00566944]
[1743687250590,2.79619,1788.5,1788.1,0.00566944]
[1743687250780,1.10581946,1788.2,1788.1,0.00566944]
[1743687250984,1.10581946,1788.2,1788.1,9.44e-06]
[1743687251182,3.60581946,1788.2,1788.1,9.44e-06]
[1743687251776,1.10581946,1788.2,1788.1,9.44e-06]
[1743687251980,3.2078,1788.5,1788.1,9.44e-06]
[1743687252283,1.11864,1788.2,1788.1,9.44e-06]
[1743687252485,11.38744,1788.2,1788.1,9.44e-06]
[1743687252781,14.04344,1788.2,1788.1,9.44e-06]
[1743687252979,14.04344,1788.2,1787.3,40.8]
[1743687252980,2.79709,1787.9,1787.5,1.11906]
[1743687253185,13.02341889,1788.2,1787.3,40.8]
[1743687253186,1.11914,1787.4,1787.3,40.8]
[1743687253387,4.32694,1787.4,1787.3,40.8]
[1743687253886,1.11914,1787.4,1787.3,40.8]
[1743687255589,3.21618434,1787.5,1787.3,40.8]
[1743687255889,1.11914,1787.4,1787.3,40.8]
[1743687256389,1.11914,1787.4,1787.3,41.91917]
[1743687256587,1.11914,1787.4,1787.3,40.8]
[1743687257090,1.12748434,1787.5,1787.3,40.8]
[1743687257395,4.32694,1787.4,1787.3,40.8]
[1743687257741,1.11914,1787.4,1787.3,40.8]
[1743687257907,2.79755,1787.6,1787.3,40.8]
[1743687258098,1.11914,1787.4,1787.3,40.8]
[1743687258304,10.2018,1787.5,1786.3,11.6691]
[1743687258503,3.2078,1787.1,1786.5,2.79927]
[1743687258696,2.79854,1787.0,1786.3,7.47466]
[1743687258905,2.79854,1787.0,1786.6,1.11962]
[1743687259109,2.79854,1787.0,1786.3,4.26686]
[1743687259110,2.7988,1786.8,1786.5,0.00838434]
[1743687259299,1.11963,1786.7,1786.5,40.80838434]
[1743687259507,0.00838434,1786.9,1786.6,2.79911]
[1743687259708,2.79739,1787.7,1786.9,2.79864]
[1743687259917,3.2078,1787.7,1786.7,3.2078]
[1743687260226,1.11964,1786.6,1786.5,40.80838434]
[1743687261221,0.00838434,1786.7,1786.5,44.01618434]
[1743687261411,0.00838434,1786.7,1786.5,40.80838434]
[1743687261617,4.32744,1786.6,1786.5,40.80838434]
[1743687261811,4.32744,1786.6,1786.0,0.69154851]
[1743687261812,1.11995,1786.1,1786.0,0.69154851]
[1743687262017,1.11989,1786.2,1786.1,1.4232]
[1743687262313,3.2078,1786.6,1786.1,1.4232]
[1743687262507,1.4078,1786.5,1786.1,1.4232]
[1743687262711,0.00838434,1786.7,1786.6,1.11964]
[1743687262926,4.32708,1787.2,1787.0,1.11936]
[1743687263105,4.32708,1787.2,1786.7,2.79895]
[1743687263106,1.11936,1787.1,1786.9,1.1194]
[1743687263314,1.11933,1787.1,1787.0,1.4232]
[1743687263516,1.11933,1787.1,1787.0,1.4049]
[1743687263817,1.3996,1787.3,1787.0,2.52427]
[1743687264006,1.11933,1787.1,1787.0,1.4049]
[1743687264205,1.11958,1786.7,1786.6,40.8]
[1743687264600,6.978,1787.0,1786.6,40.8]
[1743687264813,1.11958,1786.7,1786.6,40.8]
[1743687265408,1.1194,1787.0,1786.6,43.3]
[1743687265596,1.11952,1786.8,1786.7,1.4049]
[1743687265787,1.11964,1786.6,1786.5,0.00838434]
[1743687265988,6.00665,1786.8,1786.1,1.4049]
[1743687266303,1.11976,1786.5,1786.2,40.8]
[1743687266488,3.2078,1786.6,1786.2,40.8]
[1743687266694,1.11977,1786.4,1786.3,1.4756]
[1743687267201,4.32757,1786.4,1786.3,1.4756]
[1743687267503,1.11983,1786.3,1786.2,40.80838434]
[1743687268497,4.32763,1786.3,1786.2,40.80838434]
[1743687268698,1.11983,1786.3,1786.2,40.80838434]
[1743687268896,4.32763,1786.3,1786.2,40.80838434]
[1743687269098,1.11983,1786.3,1786.2,40.80838434]
[1743687269523,1.11983,1786.3,1786.2,0.00838434]
[1743687269524,6.82763,1786.3,1786.2,0.00838434]
[1743687269804,3.61983,1786.3,1786.2,4.34e-06]
[1743687270192,5.10053,1786.3,1786.2,4.34e-06]
[1743687271001,2.60053,1786.3,1786.2,4.34e-06]
[1743687271292,5.10053,1786.3,1786.2,4.34e-06]
[1743687271496,1.11983,1786.3,1786.2,1.11989434]
[1743687271687,1.11983,1786.3,1786.2,4.34e-06]
[1743687272092,4.32763,1786.3,1786.2,4.34e-06]
[1743687272498,6.82763,1786.3,1786.2,4.34e-06]
[1743687273092,8.27273,1786.3,1786.2,4.34e-06]
[1743687273690,5.77273,1786.3,1786.2,4.34e-06]
[1743687273893,8.27273,1786.3,1786.2,4.34e-06]
[1743687274201,3.2078,1786.6,1786.2,4.34e-06]
[1743687274395,1.11983,1786.3,1786.2,42.23920434]
[1743687274601,1.11983,1786.3,1786.2,43.35909434]
[1743687274801,1.11983,1786.3,1786.2,42.23920434]
[1743687275001,1.11983,1786.3,1786.2,40.80000434]
[1743687275300,1.11983,1786.3,1786.2,4.34e-06]
[1743687275504,5.06493,1786.3,1786.2,4.34e-06]
[1743687276499,2.56493,1786.3,1786.2,4.34e-06]
[1743687276697,6.00674,1786.8,1786.2,2.79972434]
[1743687277002,1.1197,1786.6,1786.5,1.1197]
[1743687277196,1.11964,1786.6,1786.5,1.4347]
[1743687277396,1.11962,1786.7,1786.5,1.4347]
[1743687277605,1.11962,1786.7,1786.6,1.1196]
[1743687277606,1.1196,1786.7,1786.6,1.1196]
[1743687277798,1.1196,1786.7,1786.5,4.6425]
[1743687277799,1.11964,1786.6,1786.5,4.6425]
[1743687278298,2.79864,1786.9,1786.3,3.2078]
[1743687278503,2.79864,1786.9,1786.2,4.34e-06]
[1743687278504,1.11983,1786.3,1786.2,4.34e-06]
[1743687278703,2.79902,1786.7,1786.3,1.11981]
[1743687278704,6.00682,1786.7,1786.3,1.11981]
[1743687278895,1.11983,1786.3,1786.2,2.60355434]
[1743687279200,1.11983,1786.3,1786.2,4.34e-06]
[1743687279706,1.11983,1786.3,1786.2,1.48370434]
[1743687279902,7.43674,1786.5,1786.3,1.1198]
[1743687279903,1.1198,1786.4,1786.3,1.1198]
[1743687280103,1.11983,1786.3,1786.2,2.60358434]
[1743687280404,1.11983,1786.3,1786.2,2.60359434]
[1743687280599,1.11968,1786.6,1786.5,1.11967]
[1743687280999,1.11966,1786.6,1786.5,1.11966]
[1743687281196,1.11983,1786.3,1786.2,1.48370434]
[1743687281903,1.11983,1786.3,1786.2,4.34e-06]
[1743687282902,4.32763,1786.3,1786.2,4.34e-06]
[1743687283407,1.11983,1786.3,1786.2,4.34e-06]
[1743687284101,5.13493,1786.3,1786.2,4.34e-06]
[1743687284906,2.63493,1786.3,1786.2,4.34e-06]
[1743687285103,5.23366043,1786.3,1786.2,4.34e-06]
[1743687285306,6.62496043,1786.3,1786.2,4.34e-06]
[1743687285608,6.52623,1786.3,1786.2,4.34e-06]
[1743687285806,9.36193,1786.3,1786.2,4.34e-06]
[1743687286202,7.84683,1786.3,1786.2,4.34e-06]
[1743687286597,11.78403,1786.3,1786.2,4.34e-06]
[1743687287509,9.28403,1786.3,1786.2,4.34e-06]
[1743687288201,1.11983,1786.3,1786.2,4.34e-06]
[1743687288810,1.11978,1786.4,1786.2,4.34e-06]
[1743687289006,1.11983,1786.3,1786.2,1.11986434]
[1743687289210,1.11983,1786.3,1786.2,4.34e-06]
[1743687289506,1.11983,1786.3,1786.2,0.69683957]
[1743687289711,4.32763,1786.3,1786.2,0.69683957]
[1743687290112,4.32763,1786.3,1786.2,4.34e-06]
[1743687290613,1.11983,1786.3,1786.2,4.34e-06]
[1743687291107,1.11983,1786.3,1786.2,0.69717256]
[1743687291309,4.32763,1786.3,1786.2,0.69717256]
[1743687291614,4.32763,1786.3,1786.2,4.34e-06]
[1743687291815,1.11983,1786.3,1786.2,4.34e-06]
[1743687292211,2.61523,1786.3,1786.2,4.34e-06]
[1743687293313,1.11983,1786.3,1786.2,4.34e-06]
[1743687294404,2.59393,1786.3,1786.2,4.34e-06]
[1743687294610,5.09393,1786.3,1786.2,4.34e-06]
[1743687296515,5.1926587,1786.3,1786.2,4.34e-06]
[1743687296816,5.09393,1786.3,1786.2,4.34e-06]
[1743687297317,2.59393,1786.3,1786.2,4.34e-06]
[1743687297617,3.2078,1786.6,1786.2,5.29973434]
[1743687297815,5.59678,1787.1,1787.0,1.11938]
[1743687297816,1.11939,1787.1,1787.0,1.11938]
[1743687298014,1.11929,1787.2,1787.0,3.2078]
[1743687298211,1.11929,1787.2,1787.1,42.307]
[1743687298713,1.11927,1787.2,1787.1,42.307]
[1743687299015,0.00838434,1787.3,1787.1,42.307]
[1743687299216,1.12758434,1787.3,1787.2,1.507]
[1743687299712,1.11927,1787.2,1787.1,40.8]
[1743687300306,0.00838434,1787.3,1787.1,40.8]
[1743687300511,1.11927,1787.2,1787.1,40.8]
[1743687300718,2.79865,1786.9,1786.3,6.1998]
[1743687301012,1.1197,1786.5,1786.4,1.5032]
[1743687301716,6.478,1786.8,1786.5,1.11966]
[1743687301910,1.1197,1786.5,1786.4,40.8]
[1743687302114,1.11977,1786.4,1786.3,1.5032]
[1743687302817,1.11983,1786.3,1786.2,3.20780434]
[1743687303122,4.32763,1786.3,1786.2,4.34e-06]
[1743687303325,13.29163,1786.3,1786.2,4.34e-06]
[1743687303616,1.11983,1786.3,1786.2,4.34e-06]
[1743687304014,1.11983,1786.3,1786.2,40.80000434]
[1743687304917,6.82763,1786.3,1786.2,4.34e-06]
[1743687305819,8.43405706,1786.3,1786.2,4.34e-06]
[1743687306016,1.12027,1785.6,1785.5,1.5059]
[1743687306216,1.12039,1785.4,1785.3,40.8]
[1743687306520,1.12077,1784.8,1784.6,16.56614218]
[1743687306716,4.32857,1784.8,1784.7,10.88622011]
[1743687306915,6.82857,1784.8,1784.7,6.78692011]
[1743687307215,6.82857,1784.8,1784.7,5.27377011]
[1743687307415,6.82857,1784.8,1784.7,3.07942011]
[1743687307821,1.12083,1784.7,1784.6,14.01142229]
[1743687308117,2.78453,1784.7,1784.6,4.20528229]
[1743687308318,1.1209,1784.6,1784.5,10.22997772]
[1743687308629,5.8364,1784.6,1784.5,10.22997772]
[1743687308918,8.3364,1784.6,1784.5,2.75876772]
[1743687309126,16.47079,1784.6,1783.7,3.2078]
[1743687309318,1.12134,1783.9,1783.8,7.10121307]
[1743687309518,1.12134,1783.9,1783.4,6.29874398]
[1743687309519,1.12159,1783.5,1783.4,6.29874398]
[1743687309719,4.32939,1783.5,1783.4,6.29874398]
[1743687310018,4.32939,1783.5,1783.4,0.69553091]
[1743687310019,13.29339,1783.5,1783.4,0.69553091]
[1743687310222,1.12186,1783.1,1782.9,1.498]
[1743687310414,9.6718,1783.5,1782.9,1.498]
[1743687310619,1.12181,1783.2,1783.0,4.24956307]
[1743687310819,1.12184,1783.1,1783.0,4.24956307]
[1743687311024,1.12178,1783.2,1783.1,4.24956307]
[1743687311323,1.12184,1783.1,1783.0,4.24956307]
[1743687311517,1.1219,1783.0,1782.9,4.24956307]
[1743687311712,1.12203,1782.8,1782.7,1.498]
[1743687311918,4.32983,1782.8,1782.7,5.74756307]
[1743687312528,4.32983,1782.8,1782.7,4.24956307]
[1743687312738,1.12215,1782.6,1782.5,2.959]
[1743687313225,1.12215,1782.6,1782.5,7.20856307]
[1743687313524,1.12231,1782.4,1782.0,1.12251]
[1743687313828,1.12241,1782.2,1782.1,1.4438]
[1743687314033,3.21620807,1782.4,1782.3,1.12234]
[1743687314322,7.53,1782.9,1782.4,1.12228]
[1743687314525,7.53,1782.9,1782.2,7.45736307]
[1743687314526,6.408,1782.9,1782.5,4.24956307]
[1743687314721,6.408,1782.9,1782.8,40.8]
[1743687314927,7.52998,1782.9,1782.8,40.8]
[1743687315121,7.52998,1782.9,1782.2,0.00840807]
[1743687315122,1.12234,1782.3,1782.2,0.00840807]
[1743687315323,9.6058,1782.3,1782.2,4.25797114]
[1743687315522,10.72814,1782.3,1782.2,4.25797114]
[1743687315717,6.398,1782.3,1782.2,4.25797114]
[1743687316026,6.398,1782.3,1782.2,46.18038114]
[1743687316224,0.00840807,1782.4,1782.3,1.12234]
[1743687316523,0.00840807,1782.4,1782.3,9.98940307]
[1743687316922,0.00840807,1782.4,1782.3,5.65926307]
[1743687317223,1.13068807,1782.4,1782.3,5.65926307]
[1743687317416,4.33848807,1782.4,1782.3,46.45926307]
[1743687317616,4.33848807,1782.4,1782.3,45.04956307]
[1743687317823,1.13068807,1782.4,1782.3,45.04956307]
[1743687318117,4.33848807,1782.4,1782.3,45.04956307]
[1743687318321,1.13068807,1782.4,1782.3,45.04956307]
[1743687318722,4.33848807,1782.4,1782.3,45.04956307]
[1743687318925,4.33848807,1782.4,1782.3,40.8]
[1743687319132,1.12234,1782.3,1782.2,0.00840807]
[1743687319320,5.11514,1782.3,1782.2,8.07e-06]
[1743687319521,1.12234,1782.3,1782.2,4.24957114]
[1743687320027,4.33849807,1782.4,1782.2,4.24957114]
[1743687320221,4.33849807,1782.4,1782.3,4.24956307]
[1743687320422,0.00840807,1782.4,1782.3,5.76036307]
[1743687320623,0.00840807,1782.4,1782.3,6.88270307]
[1743687320825,1.13068807,1782.4,1782.3,5.76036307]
[1743687321018,1.13068807,1782.4,1782.2,8.07e-06]
[1743687321019,1.12234,1782.3,1782.2,8.07e-06]
[1743687321224,8.93884,1782.3,1782.2,8.07e-06]
[1743687322031,11.43884,1782.3,1782.2,8.07e-06]
[1743687323428,6.332,1782.3,1782.2,8.07e-06]
[1743687323623,7.45434,1782.3,1782.2,8.07e-06]
[1743687323820,11.43884,1782.3,1782.2,8.07e-06]
[1743687324219,7.45434,1782.3,1782.2,8.07e-06]
[1743687324429,11.44304,1782.3,1782.2,8.07e-06]
[1743687325129,3.21620807,1782.4,1782.2,4.24957114]
[1743687325323,1.13068807,1782.4,1782.3,4.24956307]
[1743687325528,1.13068807,1782.4,1782.3,6.77620307]
[1743687325529,0.00840807,1782.4,1782.3,6.77620307]
[1743687325726,0.00840807,1782.4,1782.3,47.57620307]
[1743687325927,7.37305,1782.8,1782.6,1.12214]
[1743687326226,1.12198,1782.9,1782.7,2.52639]
[1743687326733,4.32983,1782.8,1782.7,1.4043]
[1743687326934,6.255,1783.0,1782.8,4.24956307]
[1743687327231,7.3769,1783.0,1782.9,1.5162]
[1743687327431,1.1219,1783.0,1782.9,5.76576307]
[1743687328032,1.12203,1782.8,1782.6,1.12212]
[1743687328335,4.6651,1783.0,1782.5,3.2078]
[1743687328534,4.6651,1783.0,1782.6,5.76576307]
[1743687328722,1.12201,1782.9,1782.7,5.76576307]
[1743687329034,6.012,1783.4,1782.7,5.76576307]
[1743687329035,6.201,1783.8,1782.7,7.224]
[1743687329332,6.201,1783.8,1783.3,3.2078]
[1743687329540,7.32245,1783.8,1783.6,1.1215]
[1743687329832,5.60548,1784.3,1783.8,2.8035]
[1743687329833,10.51691,1784.3,1783.8,2.8035]
[1743687330035,1.12127,1784.0,1783.9,1.4288]
[1743687330222,1.12124,1784.1,1783.9,1.43720807]
[1743687330428,1.12121,1784.1,1784.0,45.041155]
[1743687330626,1.12121,1784.1,1784.0,40.8]
[1743687330825,6.82901,1784.1,1784.0,40.8]
[1743687331033,1.47340807,1784.2,1784.0,45.041155]
[1743687331230,1.12121,1784.1,1784.0,40.8]
[1743687331436,1.12127,1784.0,1783.9,0.00840807]
[1743687331737,4.32907,1784.0,1783.9,8.07e-06]
[1743687332030,2.80338,1783.9,1783.1,1.12179]
[1743687332237,2.80419,1783.4,1782.9,5.669955]
[1743687332427,3.2078,1783.5,1783.1,3.2078]
[1743687332627,6.185,1783.7,1783.2,1.4288]
[1743687332826,1.12171,1783.3,1783.2,5.669955]
[1743687333036,4.32951,1783.3,1783.2,4.241155]
[1743687333537,1.5299,1783.6,1783.2,4.241155]
[1743687333538,1.12168,1783.4,1783.2,5.362905]
[1743687333731,1.12168,1783.4,1783.3,5.699855]
[1743687333935,1.12168,1783.4,1783.3,1.4587]
[1743687334132,1.12168,1783.4,1783.1,1.13019807]
[1743687334133,1.12178,1783.2,1783.1,0.00840807]
[1743687334439,7.30178,1783.2,1783.1,4.24956307]
[1743687334635,7.30178,1783.2,1783.1,0.00840807]
[1743687334835,7.30178,1783.2,1783.1,4.24956307]
[1743687335033,74.5638,1783.2,1782.2,0.68965609]
[1743687335336,74.5638,1783.2,1782.2,6.38951109]
[1743687335337,1.12234,1782.3,1782.2,6.38951109]
[1743687335542,6.23,1782.3,1782.2,1.4587]
[1743687335745,7.35234,1782.3,1782.2,5.699855]
[1743687336036,1.5299,1782.9,1782.2,5.699855]
[1743687336037,7.54273,1782.9,1782.2,5.699855]
[1743687336241,7.54273,1782.9,1782.3,4.241155]
[1743687336242,0.00840807,1782.4,1782.3,4.241155]
[1743687336541,0.00840807,1782.4,1782.3,5.363495]